bitfinex/quotes_SOLUSD_20251120
["timestamp","ask_amount","ask_price","bid_price","bid_amount"]
[1763621165124,18.80096,143.12,143.07,7.03854691]
[1763621165303,1.68,143.11,143.08,7.68854691]
[1763621165798,1.68,143.11,143.09,0.65]
[1763621166118,1.68,143.11,143.08,7.68854691]
[1763621166305,1.68,143.11,143.09,6.98860856]
[1763621166505,1.68,143.11,143.09,7.63860856]
[1763621166716,1.68,143.11,143.09,14.67715547]
[1763621167024,1.68,143.11,143.1,7.03854691]
[1763621167238,1.68,143.11,143.09,24.46012998]
[1763621167604,0.68,143.1,143.08,6.98895958]
[1763621168119,8.71854691,143.11,143.08,6.98895958]
[1763621168317,9.39854691,143.11,143.07,24.4635493]
[1763621168525,9.39854691,143.11,143.07,25.1135493]
[1763621168733,8.71854691,143.11,143.07,25.1135493]
[1763621168903,0.68,143.1,143.07,25.1135493]
[1763621169431,0.68,143.1,143.07,6.98958551]
[1763621170013,1.68,143.09,143.08,0.65]
[1763621170413,1.68,143.09,143.08,7.639097]
[1763621170806,1.68,143.09,143.08,6.989097]
[1763621171024,0.68,143.12,143.08,6.989097]
[1763621171208,1.68,143.09,143.08,6.989097]
[1763621171404,1.68,143.09,143.08,18.54351979]
[1763621171627,6.98531693,143.16,143.08,36.01626231]
[1763621171628,11.58442279,143.16,143.08,36.01626231]
[1763621171924,2.36,143.15,143.1,10.90442279]
[1763621172127,1.68,143.14,143.12,10.90442279]
[1763621172330,1.68,143.14,143.13,6.98665548]
[1763621172914,1.68,143.14,143.13,17.89107827]
[1763621173119,1.68,143.14,143.13,35.35771699]
[1763621173327,27.24623406,143.21,143.13,35.35771699]
[1763621173328,0.68,143.22,143.13,36.00771699]
[1763621173524,0.68,143.22,143.17,10.90442279]
[1763621173729,1.68,143.21,143.17,10.90442279]
[1763621173915,1.68,143.2,143.18,10.90442279]
[1763621174118,1.68,143.2,143.17,10.90442279]
[1763621174317,1.68,143.2,143.17,17.88879194]
[1763621174510,2.36,143.2,143.17,6.98436915]
[1763621174710,10.90442279,143.18,143.13,25.10749852]
[1763621175027,0.68,143.19,143.15,10.90442279]
[1763621175234,1.68,143.17,143.15,10.90442279]
[1763621175419,1.68,143.17,143.13,24.45317724]
[1763621175614,2.36,143.17,143.13,24.45317724]
[1763621175817,1.68,143.17,143.14,11.55442279]
[1763621176131,2.36,143.17,143.13,25.10317724]
[1763621176333,2.36,143.17,143.13,36.00760003]
[1763621176632,2.36,143.17,143.14,10.90442279]
[1763621177231,0.68,143.17,143.14,10.90442279]
[1763621177428,1.68,143.16,143.14,10.90442279]
[1763621177631,1.68,143.15,143.14,10.90442279]
[1763621178325,1.68,143.15,143.14,17.89059017]
[1763621179113,1.68,143.15,143.14,6.98616738]
[1763621179438,13.26442279,143.15,143.11,6.98747695]
[1763621179643,0.68,143.14,143.11,6.98747695]
[1763621180414,1.68,143.13,143.12,0.69]
[1763621180619,1.68,143.13,143.12,10.90442279]
[1763621181033,1.68,143.13,143.11,35.36097946]
[1763621181231,2.36,143.13,143.11,35.36097946]
[1763621181422,1.68,143.13,143.11,35.36097946]
[1763621182036,1.68,143.12,143.11,24.45655667]
[1763621182246,1.68,143.12,143.11,36.05097946]
[1763621182448,1.68,143.12,143.11,25.14655667]
[1763621182646,1.68,143.12,143.11,36.05097946]
[1763621183156,1.68,143.12,143.11,35.36097946]
[1763621183463,1.68,143.12,143.11,6.98747695]
[1763621184040,0.68,143.13,143.11,6.98747695]
[1763621184350,1.68,143.12,143.11,6.98747695]
[1763621184745,1.68,143.12,143.11,18.58189974]
[1763621185239,1.68,143.12,143.11,36.05097946]
[1763621185624,0.68,143.15,143.11,35.36097946]
[1763621185827,1.68,143.12,143.11,35.36097946]
[1763621186750,1.68,143.12,143.11,17.46907972]
[1763621186924,1.68,143.12,143.11,28.37350251]
[1763621187326,1.68,143.12,143.11,29.06350251]
[1763621188441,1.68,143.12,143.11,25.14671161]
[1763621188763,1.68,143.13,143.11,36.0511344]
[1763621189046,1.68,143.13,143.12,11.57442279]
[1763621189828,1.68,143.14,143.12,11.57442279]
[1763621190150,1.68,143.14,143.13,10.90442279]
[1763621190329,1.68,143.14,143.13,11.57442279]
[1763621190538,1.68,143.14,143.13,18.56107827]
[1763621191959,0.68,143.19,143.13,36.02771699]
[1763621192156,1.68,143.18,143.16,10.90442279]
[1763621192860,1.68,143.18,143.17,6.98470349]
[1763621193169,0.68,143.21,143.17,24.44646223]
[1763621193337,1.68,143.2,143.17,35.35088502]
[1763621193544,1.68,143.2,143.18,10.90442279]
[1763621193768,0.68,143.21,143.18,10.90442279]
[1763621193957,1.68,143.2,143.18,10.90442279]
[1763621194264,1.68,143.2,143.17,35.35088502]
[1763621194463,2.36,143.2,143.17,35.35088502]
[1763621194631,0.68,143.19,143.17,24.44646223]
[1763621197044,0.68,143.19,143.15,6.985579]
[1763621197265,10.90442279,143.17,143.11,10.90442279]
[1763621197442,1.68,143.16,143.11,10.90442279]
[1763621197644,0.68,143.24,143.15,10.90442279]
[1763621197964,0.68,143.24,143.19,9.78882769]
[1763621197965,2.36,143.24,143.19,9.78882769]
[1763621198133,0.68,143.23,143.2,6.98324022]
[1763621198333,0.68,143.23,143.2,24.44134077]
[1763621198562,0.68,143.23,143.2,35.34576356]
[1763621199747,0.68,143.23,143.2,36.01576356]
[1763621199947,1.68,143.24,143.2,36.01576356]
[1763621200146,2.36,143.24,143.2,36.01576356]
[1763621200456,17.88504266,143.26,143.2,36.01576356]
[1763621200457,0.68,143.26,143.22,10.90442279]
[1763621200657,1.68,143.23,143.21,0.67]
[1763621201240,0.88,143.27,143.21,0.67]
[1763621201563,1.68,143.26,143.21,0.67]
[1763621201750,1.68,143.26,143.23,10.90442279]
[1763621201938,2.36,143.26,143.23,10.90442279]
[1763621202367,1.68,143.26,143.24,6.98129014]
[1763621202736,29.70538279,143.25,143.17,6.98470349]
[1763621203062,10.90442279,143.24,143.18,10.90442279]
[1763621203361,10.90442279,143.24,143.17,6.98470349]
[1763621203362,10.90442279,143.22,143.17,6.98470349]
[1763621203565,12.58442279,143.21,143.16,6.98504082]
[1763621203864,13.26442279,143.21,143.16,6.98504082]
[1763621204046,0.68,143.2,143.16,6.98504082]
[1763621205246,0.68,143.2,143.15,6.98558308]
[1763621205453,1.68,143.19,143.15,6.98558308]
[1763621205665,12.58442279,143.19,143.14,6.9859882]
[1763621205850,11.58442279,143.18,143.13,6.9864895]
[1763621206353,17.88961418,143.16,143.11,6.98745085]
[1763621206556,17.88961418,143.16,143.1,6.98795582]
[1763621206557,2.36,143.15,143.1,6.98795582]
[1763621206869,0.68,143.15,143.1,0.67]
[1763621207167,2.36,143.14,143.11,10.90442279]
[1763621207378,36.68973803,143.18,143.12,10.90442279]
[1763621207550,17.45731877,143.21,143.12,10.90442279]
[1763621207551,18.12096,143.16,143.12,10.90442279]
[1763621207869,1.68,143.15,143.12,10.90442279]
[1763621208068,1.68,143.15,143.12,11.57442279]
[1763621208245,0.68,143.14,143.1,11.57442279]
[1763621208572,0.68,143.17,143.12,10.90442279]
[1763621208758,1.68,143.16,143.12,10.90442279]
[1763621208956,1.68,143.16,143.12,11.57442279]
[1763621209269,2.36,143.16,143.12,11.57442279]
[1763621209645,0.68,143.19,143.14,10.90442279]
[1763621209843,1.68,143.18,143.16,10.90442279]
[1763621210160,1.68,143.18,143.13,0.67]
[1763621210161,1.68,143.17,143.15,10.90442279]
[1763621210477,1.68,143.17,143.16,6.98519139]
[1763621211070,0.66,143.23,143.16,36.01259266]
[1763621211244,1.68,143.22,143.18,10.90442279]
[1763621211873,2.34,143.22,143.18,11.56442279]
[1763621212361,2.34,143.22,143.19,24.44304769]
[1763621212771,1.68,143.21,143.19,24.44304769]
[1763621213449,1.68,143.21,143.19,17.45931978]
[1763621214583,0.66,143.23,143.19,24.44304769]
[1763621214878,1.68,143.22,143.17,6.98438448]
[1763621215252,0.66,143.21,143.17,7.64438448]
[1763621215452,0.66,143.21,143.17,6.98438448]
[1763621216050,0.66,143.21,143.17,24.44614322]
[1763621216574,11.56442279,143.21,143.17,6.98438448]
[1763621216785,10.90442279,143.2,143.15,24.44891827]
[1763621216952,11.56442279,143.2,143.15,24.44891827]
[1763621217278,2.34,143.19,143.15,24.44891827]
[1763621217576,18.12096,143.21,143.17,10.90442279]
[1763621217878,1.68,143.2,143.17,10.90442279]
[1763621218058,1.68,143.2,143.18,6.98421567]
[1763621218667,1.68,143.2,143.18,17.88863846]
[1763621218869,1.68,143.19,143.18,35.34917764]
[1763621219657,1.68,143.19,143.18,36.00917764]
[1763621220166,18.78096,143.23,143.18,36.00917764]
[1763621220373,2.34,143.22,143.18,36.00917764]
[1763621221768,0.66,143.22,143.18,35.34917764]
[1763621221957,1.68,143.21,143.19,11.56442279]
[1763621222150,1.68,143.2,143.19,11.56442279]
[1763621223784,1.68,143.2,143.19,7.64372791]
[1763621224076,0.66,143.25,143.19,36.00747048]
[1763621224280,0.66,143.25,143.21,10.90442279]
[1763621224480,1.68,143.24,143.21,10.90442279]
[1763621224653,1.68,143.24,143.2,0.66]
[1763621224853,2.34,143.24,143.19,36.00747048]
[1763621225049,2.34,143.24,143.2,0.66]
[1763621225268,1.68,143.24,143.2,0.66]
[1763621225462,1.68,143.24,143.21,10.90442279]
[1763621225982,1.68,143.24,143.22,6.98226504]
[1763621226955,1.68,143.24,143.22,17.88668783]
[1763621229073,1.68,143.24,143.22,18.54668783]
[1763621229579,0.66,143.25,143.22,18.54668783]
[1763621229763,1.68,143.24,143.22,36.00235044]
[1763621230270,0.2,143.27,143.23,0.66]
[1763621230477,1.68,143.26,143.24,10.90442279]
[1763621230993,1.68,143.26,143.24,7.68821054]
[1763621231370,1.68,143.26,143.25,7.68821054]
[1763621231977,1.68,143.26,143.25,14.66901333]
[1763621232377,2.34,143.26,143.21,18.78096]
[1763621232578,0.66,143.25,143.21,14.67078433]
[1763621232885,0.66,143.25,143.21,32.12766583]
[1763621233089,0.66,143.25,143.21,31.46766583]
[1763621233266,0.66,143.25,143.22,0.66]
[1763621233968,0.66,143.25,143.23,6.98177756]
[1763621234166,0.66,143.25,143.22,6.98212956]
[1763621236175,1.68,143.24,143.22,7.68821054]
[1763621236376,1.68,143.24,143.19,7.02821054]
[1763621236576,0.66,143.23,143.19,7.02821054]
[1763621236784,0.66,143.23,143.2,7.02821054]
[1763621237188,0.66,143.23,143.19,0.66]
[1763621237580,0.66,143.23,143.21,6.9827526]
[1763621238178,0.66,143.23,143.2,14.01129522]
[1763621238382,0.66,143.23,143.2,6.98308468]
[1763621238583,0.66,143.25,143.21,7.68821054]
[1763621238782,1.68,143.24,143.21,7.68821054]
[1763621239371,1.68,143.24,143.22,7.02821054]
[1763621239595,0.86,143.27,143.24,6.98129014]
[1763621239771,2.34,143.26,143.24,6.98129014]
[1763621241172,2.34,143.26,143.23,17.45442474]
[1763621241173,2.34,143.26,143.23,24.4362023]
[1763621241595,1.68,143.25,143.23,24.4362023]
[1763621242300,1.68,143.25,143.23,6.98177756]
[1763621242700,2.36,143.25,143.23,6.98177756]
[1763621242907,0.68,143.24,143.23,6.98177756]
[1763621243107,0.68,143.24,143.19,17.45884459]
[1763621243397,0.68,143.24,143.19,24.48705513]
[1763621243570,0.68,143.24,143.19,17.45884459]
[1763621244188,7.66137731,143.24,143.19,17.45884459]
[1763621244707,0.68,143.23,143.18,14.01242621]
[1763621244913,8.70821054,143.22,143.16,7.02821054]
[1763621245213,8.70821054,143.22,143.15,31.47742575]
[1763621245214,6.9827526,143.21,143.15,31.47742575]
[1763621245374,7.6627526,143.21,143.15,31.47742575]
[1763621245573,1.68,143.22,143.17,7.02821054]
[1763621245808,1.68,143.21,143.19,7.02821054]
[1763621246376,1.68,143.21,143.19,7.73821054]
[1763621246672,0.68,143.23,143.19,7.73821054]
[1763621246878,1.68,143.22,143.19,7.73821054]
[1763621247097,1.68,143.22,143.2,7.02821054]
[1763621247493,1.68,143.22,143.21,14.01096314]
[1763621247685,8.70821054,143.22,143.14,7.02821054]
[1763621247877,25.14917054,143.21,143.14,7.73821054]
[1763621248288,0.72,143.2,143.14,7.73821054]
[1763621248491,1.68,143.19,143.14,7.73821054]
[1763621248676,0.72,143.18,143.14,7.73821054]
[1763621249407,0.72,143.18,143.15,6.98567935]
[1763621249899,0.72,143.18,143.15,7.69567935]
[1763621250100,0.72,143.18,143.15,6.98567935]
[1763621251602,7.70422132,143.18,143.13,31.47992059]
[1763621251900,0.72,143.17,143.13,6.98622265]
[1763621252116,8.70821054,143.16,143.1,0.71]
[1763621252287,8.70821054,143.16,143.09,7.02821054]
[1763621252288,7.02821054,143.15,143.09,7.02821054]
[1763621252484,7.74821054,143.15,143.09,7.02821054]
[1763621252703,0.72,143.14,143.09,7.02821054]
[1763621252908,1.68,143.13,143.09,7.02821054]
[1763621253305,2.4,143.13,143.1,6.98812019]
[1763621253610,0.72,143.12,143.1,6.98812019]
[1763621254211,0.72,143.12,143.08,6.989097]
[1763621254389,0.72,143.12,143.08,7.699097]
[1763621254586,0.72,143.12,143.07,25.11036197]
[1763621254885,0.72,143.12,143.07,32.84857251]
[1763621255090,0.72,143.12,143.08,7.02821054]
[1763621255305,1.68,143.11,143.09,6.98860856]
[1763621256211,1.68,143.1,143.09,6.98860856]
[1763621256618,1.68,143.1,143.09,14.0168191]
[1763621257989,1.68,143.1,143.09,32.19834052]
[1763621259007,1.68,143.1,143.09,25.17012998]
[1763621259192,1.68,143.1,143.09,32.19834052]
[1763621261514,7.74821054,143.18,143.09,67.14138336]
[1763621261805,1.68,143.17,143.1,28.61978769]
[1763621262009,1.68,143.16,143.14,7.02821054]
[1763621262390,1.68,143.16,143.15,6.98567935]
[1763621264308,1.68,143.16,143.14,14.01423619]
[1763621264817,0.72,143.17,143.14,14.01423619]
[1763621264986,1.68,143.16,143.14,14.01423619]
[1763621265387,0.72,143.19,143.15,7.73821054]
[1763621265715,1.68,143.18,143.16,7.73821054]
[1763621266089,1.68,143.18,143.16,7.02821054]
[1763621266482,1.68,143.18,143.17,6.98470349]
[1763621266881,6.98182455,143.23,143.17,14.72291403]
[1763621267086,1.68,143.22,143.18,7.02821054]
[1763621267300,2.4,143.22,143.17,32.18467277]
[1763621267486,0.72,143.21,143.17,32.18467277]
[1763621268110,0.72,143.21,143.17,31.47467277]
[1763621270821,0.72,143.21,143.17,27.07285493]
[1763621271405,0.72,143.21,143.18,2.6263927]
[1763621272098,0.69,143.22,143.19,2.6263927]
[1763621272298,1.68,143.21,143.18,3.2863927]
[1763621273226,1.68,143.21,143.19,2.6263927]
[1763621273603,0.69,143.25,143.2,10.26963292]
[1763621273803,1.68,143.24,143.21,2.6263927]
[1763621274116,2.37,143.24,143.21,2.6263927]
[1763621274991,2.37,143.24,143.2,24.44134077]
[1763621275192,2.37,143.24,143.21,2.6263927]
[1763621275592,0.69,143.24,143.22,6.98226504]
[1763621275813,1.68,143.23,143.22,6.98226504]
[1763621277513,1.68,143.23,143.21,9.60897796]
[1763621278001,1.68,143.23,143.21,6.98258526]
[1763621279403,2.37,143.23,143.21,6.98258526]
[1763621280333,1.68,143.23,143.21,10.26897796]
[1763621281062,0.2,143.27,143.22,3.2863927]
[1763621281238,2.37,143.26,143.22,3.2863927]
[1763621281607,1.68,143.26,143.22,3.2863927]
[1763621281813,0.69,143.25,143.22,3.2863927]
[1763621282025,0.69,143.25,143.23,6.98177756]
[1763621282909,1.68,143.26,143.23,6.98177756]
[1763621283115,2.37,143.26,143.23,6.98177756]
[1763621283324,1.68,143.26,143.23,27.72261416]
[1763621283630,2.37,143.26,143.23,27.72261416]
[1763621284030,1.68,143.25,143.23,10.26817026]
[1763621284325,2.37,143.25,143.23,6.98177756]
[1763621284626,1.68,143.24,143.23,6.98177756]
[1763621285237,1.68,143.24,143.23,9.60817026]
[1763621285441,1.68,143.24,143.23,10.26817026]
[1763621285825,0.89,143.27,143.23,27.72261416]
[1763621286019,0.2,143.27,143.25,2.6263927]
[1763621286423,1.66,143.26,143.25,2.6263927]
[1763621286632,1.66,143.26,143.24,2.6263927]
[1763621287133,1.66,143.26,143.25,6.98080279]
[1763621288225,2.35,143.26,143.24,6.98108718]
[1763621290350,1.66,143.26,143.24,6.98108718]
[1763621290547,2.35,143.26,143.24,6.98108718]
[1763621291754,1.66,143.26,143.24,10.26747988]
[1763621292114,0.69,143.25,143.19,90.00978769]
[1763621292322,2.6263927,143.23,143.17,0.66]
[1763621292633,1.66,143.22,143.17,2.6263927]
[1763621292826,2.35,143.22,143.17,4.1039534]
[1763621293143,0.69,143.21,143.17,22.22505575]
[1763621293323,0.69,143.21,143.17,18.12110235]
[1763621293641,0.69,143.21,143.17,24.44580584]
[1763621294351,0.69,143.21,143.17,6.98470349]
[1763621294646,7.67284246,143.21,143.17,6.98470349]
[1763621294952,0.69,143.21,143.17,6.98470349]
[1763621295149,5.7639534,143.22,143.16,21.56631338]
[1763621295150,0.69,143.2,143.16,4.1039534]
[1763621295322,1.66,143.19,143.16,4.1039534]
[1763621295646,1.66,143.19,143.17,6.98470349]
[1763621295845,2.35,143.19,143.17,6.98470349]
[1763621296028,0.69,143.18,143.17,6.98470349]
[1763621296228,2.35,143.18,143.14,0.66]
[1763621296429,2.35,143.18,143.12,0.66]
[1763621296665,1.66,143.18,143.16,4.1039534]
[1763621296960,1.66,143.18,143.15,4.1039534]
[1763621297429,1.66,143.18,143.15,4.7639534]
[1763621297632,0.69,143.17,143.14,6.98616738]
[1763621298261,0.69,143.17,143.12,6.98698263]
[1763621298568,0.69,143.17,143.12,11.75093603]
[1763621299132,7.67471754,143.17,143.12,11.75093603]
[1763621299446,7.67471754,143.17,143.12,11.09093603]
[1763621299647,0.69,143.16,143.12,11.09093603]
[1763621299848,1.66,143.15,143.12,11.09093603]
[1763621300059,1.66,143.15,143.11,4.1039534]
[1763621300347,0.7,143.14,143.11,4.1039534]
[1763621300554,0.7,143.14,143.1,4.7739534]
[1763621300937,0.7,143.14,143.11,11.09156399]
[1763621301867,0.7,143.14,143.1,11.09207359]
[1763621302654,0.7,143.14,143.1,11.76207359]
[1763621303654,0.7,143.14,143.1,29.23237407]
[1763621303850,1.66,143.15,143.11,4.7739534]
[1763621304054,1.66,143.15,143.12,4.7739534]
[1763621304358,0.7,143.14,143.11,0.67]
[1763621304554,0.7,143.14,143.11,4.7739534]
[1763621304773,1.66,143.13,143.11,4.7739534]
[1763621304959,1.66,143.13,143.12,0.67]
[1763621305330,1.66,143.13,143.12,4.7739534]
[1763621305529,18.82096,143.16,143.13,6.98665548]
[1763621305764,2.36,143.15,143.13,6.98665548]
[1763621305949,0.7,143.17,143.14,4.7739534]
[1763621306268,1.66,143.16,143.14,0.67]
[1763621306557,1.66,143.15,143.14,0.67]
[1763621306731,1.66,143.15,143.14,4.7739534]
[1763621306930,1.66,143.15,143.13,28.5572476]
[1763621307166,1.66,143.15,143.13,29.2272476]
[1763621307345,1.66,143.15,143.13,24.4532942]
[1763621308139,2.35,143.15,143.13,24.4532942]
[1763621308546,1.66,143.15,143.13,24.4532942]
[1763621308755,2.35,143.15,143.13,24.4532942]
[1763621309762,0.69,143.14,143.13,6.98665548]
[1763621310165,1.66,143.15,143.13,6.98665548]
[1763621310360,2.35,143.15,143.13,6.98665548]
[1763621311572,1.66,143.15,143.12,6.98714365]
[1763621311782,0.69,143.14,143.12,6.98714365]
[1763621312771,2.35,143.15,143.12,6.98714365]
[1763621312972,0.69,143.14,143.12,6.98714365]
[1763621314381,0.69,143.14,143.1,4.1039534]
[1763621314382,0.69,143.14,143.11,6.9874232]
[1763621314783,0.69,143.14,143.11,11.0913766]
[1763621314954,0.69,143.14,143.11,7.7074232]
[1763621315151,0.69,143.14,143.11,11.8113766]
[1763621318177,1.66,143.15,143.12,7.70670158]
[1763621318484,1.66,143.15,143.13,4.1039534]
[1763621318665,0.69,143.18,143.14,4.1039534]
[1763621318864,1.66,143.17,143.14,4.8239534]
[1763621319272,2.35,143.17,143.14,0.72]
[1763621319449,2.35,143.17,143.14,4.8239534]
[1763621319655,2.35,143.17,143.14,0.72]
[1763621320087,1.66,143.17,143.14,4.8239534]
[1763621320271,0.69,143.19,143.16,4.1039534]
[1763621320469,1.66,143.18,143.16,4.8239534]
[1763621320666,0.69,143.2,143.17,4.8239534]
[1763621320863,1.66,143.19,143.17,4.8239534]
[1763621321384,0.69,143.22,143.18,4.8239534]
[1763621321680,0.69,143.22,143.16,4.1039534]
[1763621321681,2.35,143.21,143.16,4.1039534]
[1763621322068,0.69,143.2,143.16,4.1039534]
[1763621322268,1.66,143.21,143.18,4.1039534]
[1763621322680,1.66,143.21,143.17,24.44646223]
[1763621322681,0.69,143.23,143.2,4.1039534]
[1763621322992,1.66,143.22,143.2,4.1039534]
[1763621323286,1.66,143.22,143.19,4.8239534]
[1763621323481,1.66,143.22,143.19,0.72]
[1763621323482,2.35,143.22,143.19,0.72]
[1763621324385,2.35,143.22,143.2,6.98324022]
[1763621324790,0.69,143.22,143.2,6.98324022]
[1763621324991,1.66,143.21,143.2,6.98324022]
[1763621325294,1.66,143.21,143.17,17.46175874]
[1763621325486,0.69,143.2,143.18,6.98413733]
[1763621325659,0.69,143.2,143.17,21.56571214]
[1763621325660,0.69,143.2,143.17,6.98456605]
[1763621326063,0.69,143.2,143.16,11.08901673]
[1763621326390,7.67339877,143.2,143.15,6.98567935]
[1763621326592,7.67339877,143.2,143.15,11.08963275]
[1763621326773,4.1039534,143.18,143.14,6.98609497]
[1763621327088,2.35,143.17,143.14,6.98609497]
[1763621327688,2.35,143.17,143.14,11.81004837]
[1763621328073,2.35,143.17,143.14,7.70609497]
[1763621328273,2.35,143.17,143.14,11.81004837]
[1763621329314,2.35,143.17,143.12,6.98714365]
[1763621329315,0.69,143.16,143.12,6.98714365]
[1763621329669,0.69,143.16,143.12,11.81109705]
[1763621330396,0.69,143.16,143.13,4.1039534]
[1763621330571,1.66,143.17,143.14,4.1039534]
[1763621330771,2.33,143.17,143.14,4.8139534]
[1763621331503,1.66,143.16,143.14,4.8139534]
[1763621332504,1.66,143.16,143.15,6.98567935]
[1763621336402,1.66,143.16,143.15,11.79963275]
[1763621337690,0.67,143.19,143.15,11.79963275]
[1763621337907,1.66,143.18,143.16,0.71]
[1763621338211,0.67,143.19,143.16,4.8139534]
[1763621338212,1.66,143.17,143.16,4.8139534]
[1763621338993,1.66,143.17,143.16,0.71]
[1763621339312,2.33,143.17,143.14,6.98610503]
[1763621339686,2.33,143.17,143.14,7.69610503]
[1763621340994,0.67,143.17,143.14,7.69610503]
[1763621341199,1.66,143.16,143.14,7.69610503]
[1763621342486,1.66,143.16,143.14,0.71]
[1763621342691,1.66,143.16,143.12,21.57122406]
[1763621342891,9.78882769,143.14,143.09,11.09208416]
[1763621343114,1.66,143.13,143.09,11.09208416]
[1763621343295,2.33,143.13,143.09,7.69813076]
[1763621343502,0.67,143.12,143.09,7.69813076]
[1763621344608,0.67,143.12,143.09,11.80208416]
[1763621345411,0.67,143.12,143.08,11.09304734]
[1763621345719,0.67,143.12,143.09,0.71]
[1763621345928,0.67,143.12,143.09,7.69833043]
[1763621346129,0.67,143.12,143.09,6.98833043]
[1763621347294,0.67,143.12,143.09,7.69833043]
[1763621347496,7.65721998,143.12,143.08,6.98892921]
[1763621347693,9.78882769,143.11,143.07,4.8139534]
[1763621347892,1.66,143.1,143.07,4.8139534]
[1763621348094,9.78882769,143.09,143.05,11.80440298]
[1763621348339,4.1039534,143.08,143.04,0.1]
[1763621348650,2.33,143.07,143.04,0.1]
[1763621348928,2.33,143.07,143.04,7.09103691]
[1763621348929,9.78882769,143.06,143.04,7.09103691]
[1763621349112,0.67,143.08,143.04,7.80103691]
[1763621349419,0.67,143.08,143.04,11.90499031]
[1763621349420,1.66,143.07,143.04,11.90499031]
[1763621349720,0.67,143.08,143.04,7.80103691]
[1763621349721,1.66,143.06,143.04,7.80103691]
[1763621350089,1.66,143.06,143.04,0.1]
[1763621350500,2.33,143.06,143.04,0.1]
[1763621351443,1.66,143.06,143.04,7.09103337]
[1763621352105,10.45882769,143.05,143.04,0.1]
[1763621355109,1.66,143.05,143.04,7.09105145]
[1763621355421,1.66,143.05,143.04,0.1]
[1763621356322,2.33,143.05,143.04,0.1]
[1763621358230,32.87238729,143.05,143.04,0.1]
[1763621358431,39.86295003,143.05,143.04,0.1]
[1763621358722,9.78882769,143.04,143.02,0.1]
[1763621358915,13.09142729,143.03,143.02,0.1]
[1763621359598,20.08296752,143.03,143.02,0.1]
[1763621360101,10.45882769,143.03,143.02,0.1]
[1763621360518,17.45036792,143.03,143.02,0.1]
[1763621360728,20.08296752,143.03,143.02,0.1]
[1763621361609,28.57978769,143.03,143.02,0.1]
[1763621362033,38.20392752,143.03,143.02,0.1]
[1763621363630,41.00416554,143.03,143.02,0.1]
[1763621364713,30.71002571,143.03,143.02,0.1]
[1763621365028,30.27978769,143.03,143.02,0.1]
[1763621366131,32.91238729,143.03,143.02,0.1]
[1763621366507,35.71262531,143.03,143.02,0.1]
[1763621366706,42.70416554,143.03,143.02,0.1]
[1763621368708,40.07156594,143.03,143.02,0.1]
[1763621369010,9.78882769,142.98,142.97,0.1]
[1763621369329,14.10142729,142.98,142.97,0.1]
[1763621369544,14.78142729,142.98,142.97,0.1]
[1763621369727,21.77922161,142.98,142.97,0.1]
[1763621370206,20.09922161,142.98,142.97,0.1]
[1763621370411,28.77320678,142.98,142.97,0.1]
[1763621371332,18.12096,142.95,142.92,0.67]
[1763621371636,11.46882769,142.94,142.92,0.67]
[1763621373138,11.46882769,142.94,142.92,7.66687398]
[1763621373328,0.68,142.97,142.92,7.66687398]
[1763621373329,1.68,142.93,142.92,7.66687398]
[1763621373509,1.68,142.93,142.92,6.99687398]
[1763621373936,1.68,142.93,142.9,17.49381539]
[1763621374239,1.68,142.93,142.91,0.67]
[1763621374922,1.68,142.93,142.91,7.66726993]
[1763621375433,1.68,142.93,142.92,0.67]